Cogmind - Beta 13 @@@ ROGUE MODE // 2024.04.30 @ 00:32:02 Player: Aleks Result: Destroyed by H-88 Terminator with KE Penetrator Performance ------------- Evolutions (9) 4500 Regions Visited (28) 5600 Robots Destroyed (410) 2050 Value Destroyed (23348) 23348 Prototype IDs (63) 1260 Alien Tech Used (0) 0 Bonus (16028) 16028 TOTAL SCORE: 52786 Bonus ------- Triggered Max Security 1000 High Alert Combat Kills 7093 Follower Combat Kills 2956 Entered Garrisons 1200 Used RIF Installer 3500 Aligned with FarCom 300 Scanned by Researcher 500 Friendly Fire -521 Cogmind --------- Core Integrity 0/1600 Matter 297/300 Energy 99/100 System Corruption 0% Temperature Cool (0) Movement Core (50) Location -1/Access Parts ------- > --- POWER (2) -------- (None) > --- PROPULSION (6) --- (None) > --- UTILITY (13) ----- (None) > --- WEAPON (4) ------- (None) > --- INVENTORY (5) ---- Quantum Reactor Advanced Transmission Jammer Relay Coupler [NC] (41) Dispersion Rifle Enhanced Nova Cannon Peak State ------------ > --- POWER ------------ Micro Antimatter Reactor Light Quantum Reactor > --- PROPULSION ------- Biometal Heavy Treads Advanced Heavy Siege Treads Advanced Heavy Siege Treads > --- UTILITY ---------- Cargo Storage Unit Experimental Optical Array Advanced Targeting Computer Advanced Target Analyzer Experimental Core Analyzer Armor Integrity Analyzer Relay Coupler [Sentry] Relay Coupler [Specialist] Relay Coupler [Hunter] Relay Coupler [Proto] > --- WEAPON ----------- Hypervelocity Railgun Hypervelocity Railgun Hypervelocity Railgun Advanced Remote Datajack > --- INVENTORY -------- Quantum Reactor Enhanced Armored Heavy Treads Advanced Heavy Siege Treads Advanced Heat Sink Advanced Heat Sink Gravity Neutralizer Advanced Transmission Jammer Experimental ECM Suite Heavy Armor Plating Heavy Armor Plating Layered Light Armor Plating Layered Light Armor Plating Advanced Force Field Relay Coupler [NC] Relay Coupler [Cutter] Relay Coupler [Sentry] Relay Coupler [Sentry] Relay Coupler [Sentry] Relay Coupler [Hunter] Relay Coupler [Proto] Enhanced Quantum Rifle Enhanced Quantum Rifle Hypervelocity Railgun Fusion Bomb Launcher Fusion Bomb Launcher Advanced Remote Datajack [Rating: 178] Favorites ----------- Power Light Antimatter Reactor Engine Improved Deuterium Engine Power Core Neutrino Core Reactor Light Antimatter Reactor Propulsion Armored Treads Treads Armored Treads Leg Carbon-fiber Leg Wheel Compact Wheel Hover Unit Combat Gravmag System Flight Unit VTOL Module Utility Relay Coupler [Grunt] Device Advanced Heat Sink Storage Huge Storage Unit Processor Advanced Targeting Computer Hackware Relay Coupler [Grunt] Protection Improved Light Armor Plating Weapon Advanced Beam Rifle Energy Gun Advanced Beam Rifle Energy Cannon Heavy Plasma Cannon Ballistic Gun Enhanced Coil Gun Ballistic Cannon Heavy Linear Accelerator Launcher Shock Bomb Launcher Special Weapon Remote Datajack Slashing Weapon Longsword +1 Piercing Weapon CR-A16's Pointy Stick Build | -11 -10 -10 -10 -9 -8 -8 -8 -8 -8 -7 -7 -7 -7 -7 -7 -6 -6 -6 -6 -5 -4 -4 -3 -3 -3 -2 -2 -1 ------- Run | Yrd Mat Min Exi Min Mat Gar Mat Gar Mat Fac Gar Fac Low Low Zio Pro Fac Gar Fac Fac Fac Gar Res Gar Arm Res Tes Acc Slots Evolved 18 | . . . . . 4 . . . . 2 . . . . . . 2 . . 2 2 . 2 . . 2 . 2 Power 1 | . . . . . . . . . . . . . . . . . . . . . . . . . . 1 . . Propulsion 4 | . . . . . 2 . . . . . . . . . . . . . . 1 1 . . . . . . . Utility 11 | . . . . . 2 . . . . 2 . . . . . . 1 . . 1 1 . 2 . . . . 2 Weapon 2 | . . . . . . . . . . . . . . . . . 1 . . . . . . . . 1 . . Parts Attached 531 | 6 1 . 1 5 11 16 24 30 7 54 33 5 1 . 4 9 41 59 16 21 14 48 3 44 58 2 14 4 Power 40 | 1 . . . . 2 1 6 2 1 3 1 . . . 2 . 1 4 . . . 5 . 1 6 1 2 1 Engine 9 | 1 . . . . . . 4 . 1 1 . . . . . . . 1 . . . 1 . . . . . . Core 15 | . . . . . 2 1 2 2 . 2 1 . . . 1 . . 3 . . . 1 . . . . . . Reactor 16 | . . . . . . . . . . . . . . . 1 . 1 . . . . 3 . 1 6 1 2 1 Propulsion 104 | 2 . . . . 2 3 9 7 3 9 2 1 . . 1 . 3 21 2 4 1 14 1 1 16 . 2 . Treads 76 | . . . . . . . 6 7 3 9 2 1 . . 1 . 3 14 2 1 . 7 1 1 16 . 2 . Leg 12 | . . . . . 1 1 1 . . . . . . . . . . 7 . 2 . . . . . . . . Wheel 4 | 2 . . . . . 2 . . . . . . . . . . . . . . . . . . . . . . Hover 1 | . . . . . . . . . . . . . . . . . . . . 1 . . . . . . . . Flight 11 | . . . . . 1 . 2 . . . . . . . . . . . . . 1 7 . . . . . . Utility 181 | 1 1 . 1 3 4 4 4 9 1 18 20 3 1 . . 4 13 19 4 9 9 19 . 17 12 . 4 1 Device 67 | . 1 . . 3 3 4 1 4 . 5 11 1 1 . . . 8 5 1 3 2 2 . 8 4 . . . Storage 10 | 1 . . 1 . . . 1 . . 4 1 . . . . . . . . . . 1 . 1 . . . . Processor 8 | . . . . . . . . . . . . . . . . 1 . 1 . 1 1 . . . 2 . 2 . Hackware 48 | . . . . . . . . 2 1 1 6 2 . . . . 2 6 3 2 4 12 . 2 3 . 1 1 Protection 48 | . . . . . 1 . 2 3 . 8 2 . . . . 3 3 7 . 3 2 4 . 6 3 . 1 . Artifact . | . . . . . . . . . . . . . . . . . . . . . . . . . . . . . Weapon 206 | 2 . . . 2 3 8 5 12 2 24 10 1 . . 1 5 24 15 10 8 4 10 2 25 24 1 6 2 Energy Gun 54 | 1 . . . 2 2 5 2 6 1 13 4 1 . . 1 2 10 1 . . . . . . 1 . 2 . Energy Cannon 23 | . . . . . 1 . 1 1 . . . . . . . . 6 1 3 . . 1 1 2 3 1 . 2 Ballistic Gun 46 | 1 . . . . . . . . . . . . . . . . . 7 2 2 2 7 1 12 11 . 1 . Ballistic Cannon 1 | . . . . . . . . . . . . . . . . . . . . . . . . . 1 . . . Launcher 31 | . . . . . . 3 2 3 . 3 1 . . . . 1 3 2 2 1 . . . 4 4 . 2 . Special Weapon 40 | . . . . . . . . 2 1 4 5 . . . . 2 3 4 3 2 1 1 . 7 4 . 1 . Impact Weapon . | . . . . . . . . . . . . . . . . . . . . . . . . . . . . . Slashing Weapon 9 | . . . . . . . . . . 4 . . . . . . 2 . . 3 . . . . . . . . Piercing Weapon 2 | . . . . . . . . . . . . . . . . . . . . . 1 1 . . . . . . Special Melee Weapon . | . . . . . . . . . . . . . . . . . . . . . . . . . . . . . Unidentified Prototypes 18 | . . . . 1 2 . 3 . . 3 . . . . . . 1 . . . 2 . . 1 2 . 3 . Parts Lost 104 | . . . . . 2 4 8 1 2 4 2 . . . . 2 3 13 7 15 1 5 . 4 17 1 12 1 Power 11 | . . . . . . . 2 . 1 . . . . . . . . 3 . . . . . . 2 . 3 . Propulsion 29 | . . . . . 2 2 4 . 1 1 . . . . . . 1 5 3 4 . 1 . . 3 . 2 . Utility 38 | . . . . . . 2 1 1 . 3 2 . . . . 2 1 3 1 6 1 4 . 4 4 . 2 1 Weapon 26 | . . . . . . . 1 . . . . . . . . . 1 2 3 5 . . . . 8 1 5 . Highest Loss Streak 11 | . . . . . 1 2 3 1 2 2 1 . . . . 1 1 9 3 7 1 2 . 2 6 1 11 1 To Critical Strikes 1 | . . . . . . . . . . . . . . . . . . . . . . . . . 1 . . . Average Slot Usage (%) 88 | . 95 100 89 95 79 92 93 98 99 96 96 92 92 92 92 91 93 98 96 71 36 82 75 78 67 77 65 3 Engine 1 | . 14 14 14 14 . . 6 1 3 5 . . . . . . . . 6 4 . 1 . . . . . . Core 3 | . . . . . 8 9 1 7 5 1 7 7 7 7 6 7 1 5 . . . 2 . . . . . . Reactor 1 | . . . . . . . . . . . . . . . . . 4 . . . . 1 4 4 4 8 5 . Treads 18 | . . . . . . . 12 36 35 29 27 23 23 23 23 23 20 21 24 5 . 12 13 14 13 13 11 . Leg 1 | . . . . . 1 13 12 . . . . . . . . . . 4 . 6 . . . . . . . . Wheel 2 | . 28 28 28 28 11 18 4 . . . . . . . . . . . . . . . . . . . . . Device 12 | . 9 14 14 12 17 21 18 15 9 9 13 10 10 15 15 7 18 14 9 7 4 1 . 10 6 . . . Storage 6 | . 14 14 14 14 9 9 9 9 9 7 7 7 7 7 7 7 6 6 6 4 . 2 4 4 4 4 3 . Processor 1 | . . . . . . . . . . . . . . . . 4 2 . . . 7 6 4 4 7 13 13 . Hackware 14 | . . . . . . . . 3 9 10 18 26 26 23 23 10 11 22 29 22 20 29 23 21 16 17 14 2 Protection 5 | . . . . . 7 2 8 7 8 14 4 . . . . 13 6 2 . 3 . 4 9 3 1 4 2 . Energy Gun 8 | . 14 14 8 24 18 17 15 14 16 12 11 7 7 7 7 10 14 4 . . . . . . . . . . Ballistic Gun 3 | . 14 14 8 . . . . . . . . . . . . . . 10 12 4 . 10 6 7 6 8 6 . Special Weapon 1 | . . . . . . . . 2 1 1 2 7 7 7 7 3 . 1 1 1 . 2 4 2 1 4 3 . Naked Turns 121 | . . . . . . . . . . . . . . . . . . . . 1 . . . . . . 26 94 Heaviest Build 211 | 11 12 12 14 18 28 26 38 42 43 103 101 101 105 105 105 107 121 117 112 120 24 58 66 199 200 211 210 . Greatest Support 240 | 32 32 32 32 32 32 48 80 80 80 86 117 117 117 117 117 115 125 98 80 35 4 220 220 220 240 235 235 3 Greatest Overweight (x) 39 | 1 . . . . 1 1 1 . . 1 1 . . . . . 2 31 2 39 7 1 . . 1 . . . Average Overweight (x) . | . . . . . . . . . . . . . . . . . . 1 1 2 . . . . . . . . Largest Inventory Capacity 30 | 8 8 8 10 10 10 10 15 15 15 25 25 25 25 25 25 25 25 25 25 25 5 10 10 30 30 30 30 5 Average Capacity 20 | 7 8 8 8 10 10 10 10 15 15 19 21 25 25 25 25 25 25 25 25 22 5 7 10 27 30 30 27 5 Most Carried 30 | 6 8 8 8 7 10 10 14 15 15 21 25 25 25 25 25 25 25 25 25 25 5 10 10 30 30 30 30 5 Average Carried 19 | 2 6 8 7 5 8 9 10 14 14 19 21 24 25 25 24 24 24 24 24 19 3 7 10 25 28 26 26 4 Final Capacity 30 | 8 8 8 10 10 10 10 15 15 15 20 25 25 25 25 25 25 25 25 25 5 5 10 10 30 30 30 5 5 Final Carried 30 | 6 8 8 7 5 10 10 14 15 14 20 25 25 25 25 25 25 25 25 25 5 5 10 10 30 25 30 5 5 Class Distribution -------------------- 32% | Bothacker-Mutant 15% | Botlord-Skirmisher 12% | Scavenger-Mutant 12% | Bothacker-Skirmisher 8% | Mutant 3% | Botlord-Gunner 3% | Botlord-Tank 3% | Botlord-Mutant Dominant Class ---------------- Mutant | -10/Materials Mutant | -10/Mines Mutant | -10/Exiles Mutant | -9/Mines Mutant | -8/Materials Scavenger-Mutant | -8/Garrison Scavenger-Mutant | -8/Materials Scavenger-Mutant | -8/Garrison Bothacker-Mutant | -8/Materials Bothacker-Mutant | -7/Factory Bothacker-Mutant | -7/Garrison Bothacker-Mutant | -7/Factory Bothacker-Mutant | -7/Lower Caves Bothacker-Mutant | -7/Lower Caves Bothacker-Mutant | -7/Zion Bothacker-Mutant | -6/Proximity Caves Bothacker-Skirmisher | -6/Factory Botlord-Skirmisher | -6/Garrison Botlord-Skirmisher | -6/Factory Botlord-Mutant | -5/Factory Hacker-Mutant | -4/Factory Botlord-Skirmisher | -4/Garrison Botlord-Tank | -3/Research Botlord-Skirmisher | -3/Garrison Botlord-Gunner | -3/Armory Botlord-Gunner | -2/Research Botlord-Gunner | -2/Testing Mutant | -1/Access Resources | -11 -10 -10 -10 -9 -8 -8 -8 -8 -8 -7 -7 -7 -7 -7 -7 -6 -6 -6 -6 -5 -4 -4 -3 -3 -3 -2 -2 -1 ----------- Run | Yrd Mat Min Exi Min Mat Gar Mat Gar Mat Fac Gar Fac Low Low Zio Pro Fac Gar Fac Fac Fac Gar Res Gar Arm Res Tes Acc Matter Collected 10733 | 206 66 . 11 50 95 325 222 499 155 598 539 3 156 30 . 158 493 1229 342 337 125 1161 141 1089 2033 54 611 5 Remotely . | . . . . . . . . . . . . . . . . . . . . . . . . . . . . . Salvage Created 18432 | . 38 . . 61 737 854 813 1198 393 1610 1562 . 53 . . 563 1996 1691 1088 480 172 550 . 1923 1626 105 919 . Parts 792 | . 4 . . 10 28 41 38 56 20 68 37 . 2 . . 15 79 74 48 31 12 40 . 74 79 4 32 . Haulers Intercepted 13 | . . . . . 2 . 5 . 1 2 . . . . . . 3 . . . . . . . . . . . Recyclers Shooed 8 | . . . . . . . . . . . . . . . . . 1 . 5 1 . . 1 . . . . . Parts Field Recycled . | . . . . . . . . . . . . . . . . . . . . . . . . . . . . . Retrieved Matter . | . . . . . . . . . . . . . . . . . . . . . . . . . . . . . Parts Self-Destructed 58 | . . . . . . . . . . . . . 12 28 . 18 . . . . . . . . . . . . Prevented 2 | . . . . . . . . . . . . . 1 1 . . . . . . . . . . . . . . Kills | -11 -10 -10 -10 -9 -8 -8 -8 -8 -8 -7 -7 -7 -7 -7 -7 -6 -6 -6 -6 -5 -4 -4 -3 -3 -3 -2 -2 -1 ------- Run | Yrd Mat Min Exi Min Mat Gar Mat Gar Mat Fac Gar Fac Low Low Zio Pro Fac Gar Fac Fac Fac Gar Res Gar Arm Res Tes Acc Combat Hostiles Destroyed 347 | . 1 . . 4 10 23 15 29 7 34 16 . 1 . . 13 32 32 17 6 4 9 . 32 39 1 22 . Melee 11 | . . . . . . . . . . . . . . . . . . . 1 4 3 . . 1 2 . . . Guns 213 | . 1 . . 4 10 14 12 22 7 29 13 . 1 . . 8 17 28 5 1 1 9 . 7 19 1 4 . Cannons 26 | . . . . . . . . 2 . . . . . . . . 2 . 7 . . . . 4 11 . . . AOE 86 | . . . . . . 8 3 5 . 3 3 . . . . 3 7 4 4 1 . . . 20 7 . 18 . Classes Destroyed 22 | . 1 . . 1 5 3 2 . . . . . . . . . 2 . 1 . . . . 2 2 . 3 . Worker 13 | . . . . . 1 . 2 . . 4 . . . . . . 3 . 2 . 1 . . . . . . . Builder 13 | . . . . . 1 . . . . 2 . . . . . . 4 . 2 4 . . . . . . . . Tunneler 2 | . . . . . . . 1 . 1 . . . . . . . . . . . . . . . . . . . Hauler 13 | . . . . . 2 . 5 . 1 2 . . . . . . 3 . . . . . . . . . . . Recycler 3 | . . . . . . . . . . . . . . . . . 1 . 2 . . . . . . . . . Mechanic 3 | . . . . . . . . . . . . . . . . . . . . . . . . . . . 3 . Operator 2 | . . . . . . . . . . . . . . . . . 1 . . . . . . . 1 . . . Watcher 12 | . . . . . 2 . . . 1 2 . . . . . . 5 . 1 1 . . . . . . . . Swarmer 74 | . . . . 4 . 4 6 3 2 7 2 . . . . 7 12 3 . . 3 4 . 8 9 . . . Cutter 8 | . . . . . . . . . . . . . . . . . . . . . . . . 8 . . . . Saboteur 2 | . . . . . . . . . . . . . . . . . . . . . . . . . 2 . . . Grunt 134 | . 1 . . . 9 10 6 16 3 17 13 . 1 . . 2 5 12 11 . . . . 11 6 . 11 . Brawler 8 | . . . . . . . 1 . 1 . . . . . . . 1 . 1 . . . . . 2 . 2 . Duelist 12 | . . . . . 1 3 . 1 . . . . . . . . . . 1 . . . . 2 3 . 1 . Protector 2 | . . . . . . . . . . . . . . . . . . . 1 . . . . . . . 1 . Sentry 43 | . . . . . . 4 2 3 1 3 2 . . . . 1 6 12 1 2 . 3 . . 2 1 . . Demolisher 4 | . . . . . . . . . . . . . . . . . . . . . . . . . 4 . . . Hunter 10 | . . . . . . 1 . . . 2 . . . . . 2 . 1 . . . . . . 4 . . . Programmer 49 | . . . . . . 1 . 7 . 5 . . . . . 1 8 4 2 4 1 2 . 2 7 . 5 . Behemoth 1 | . . . . . . . . . . . . . . . . . . . . . . . . 1 . . . . Striker 1 | . . . . . . . . . . . . . . . . . . . . . . . . . . . 1 . Executioner 1 | . . . . . . . . . . . . . . . . . . . . . . . . . . . 1 . Best Kill Streak 24 | . 1 . . 4 3 4 5 6 7 7 4 . 1 . . 3 9 10 10 5 3 3 . 11 8 1 24 . Combat Bots Only 21 | . 1 . . 4 2 4 4 6 5 5 4 . 1 . . 3 6 10 5 3 3 3 . 11 8 1 21 . Max Kills in Single Turn 7 | . 1 . . 1 1 2 3 2 1 2 3 . 1 . . 2 4 2 4 2 1 1 . 4 2 1 7 . Gunslinging 1 | . . . . . . . . . . . . . . . . 1 1 1 . . . . . 1 . . 1 . Exploded 7 | . . . . . . 2 2 2 . 2 2 . . . . 2 2 2 3 1 . . . 4 2 . 7 . Melee 1 | . . . . . . . . . . . . . . . . . . . 1 1 1 . . 1 1 . . . Uniques/NPCs Destroyed . | . . . . . . . . . . . . . . . . . . . . . . . . . . . . . Combat | -11 -10 -10 -10 -9 -8 -8 -8 -8 -8 -7 -7 -7 -7 -7 -7 -6 -6 -6 -6 -5 -4 -4 -3 -3 -3 -2 -2 -1 -------- Run | Yrd Mat Min Exi Min Mat Gar Mat Gar Mat Fac Gar Fac Low Low Zio Pro Fac Gar Fac Fac Fac Gar Res Gar Arm Res Tes Acc Hostile Shots Fired 3146 | . 2 . . 18 48 68 66 136 37 298 116 . 2 10 . 74 229 527 121 164 34 47 14 156 507 7 363 102 Missed 1034 | . . . . 3 18 30 21 42 8 100 41 . . 3 . 28 89 175 45 54 11 16 5 50 138 2 117 38 Damage Taken 35640 | . 22 . . 117 484 584 673 1491 458 2569 1045 11 33 65 . 814 1755 3480 1134 2749 414 591 199 2316 8465 124 4391 1656 Core 6499 | . . . . 54 132 72 122 97 65 223 115 . . . . 72 195 428 104 983 76 155 68 173 783 . 959 1623 Absorbed by Shields 2125 | . . . . . . 20 . . . . . . . . . . . . . . . . . . . . 2069 36 Reduced by Siege Mode 519 | . . . . . . . . . . . . . . . . . 25 . . . . 7 . 6 481 . . . Redirected to Shielding 11 | . . . . . . . . . . . . . . . . 5 6 . . . . . . . . . . . Ignored by Resistances 171 | . . . . . . . . . . 73 29 . . . . . . . . . . . . . 69 . . . Regen/Repaired (Parts) 665 | . . . . . . . . . . 148 . . . . 517 . . . . . . . . . . . . . Core Remaining (%) 42 | 100 . . . 78 . . . . 11 . . . . . . 41 . . 14 1 . 79 . . 21 . 33 . Volleys Fired 1303 | . 2 . . 4 47 76 62 97 34 121 118 10 3 6 . 37 125 112 50 30 9 61 6 118 130 6 37 2 Largest 3 | . 2 . . 2 2 2 2 2 2 2 2 1 1 1 . 2 3 3 3 2 1 3 2 3 3 3 3 1 Hottest 240 | . 60 . . 90 122 122 136 136 122 160 122 61 61 5 . 141 240 226 156 66 30 90 120 180 200 200 132 120 Shots Fired 2351 | . 4 . 2 8 94 137 117 181 62 232 201 11 5 6 . 54 284 232 107 39 9 96 9 175 205 10 69 2 Gun 1814 | . 4 . 2 8 94 121 109 154 58 220 174 2 4 . . 50 214 194 67 20 9 67 6 67 117 4 49 . Cannon 264 | . . . . . . . 6 13 . . . . . . . . 60 8 32 . . . 2 79 57 5 . 2 Launcher 99 | . . . . . . 16 2 10 . 2 2 . . . . 2 5 3 4 17 . . . 12 12 . 12 . Special 174 | . . . . . . . . 4 4 10 25 9 1 6 . 2 5 27 4 2 . 29 1 17 19 1 8 . Kinetic 551 | . 2 . 1 . . . . . . . . . . . . . . 121 67 20 9 67 6 67 151 4 36 . Thermal 1516 | . . . . 4 90 121 115 167 58 220 174 2 4 . . 50 274 81 32 . . . 2 79 23 5 13 2 Explosive 82 | . . . . . . 16 2 10 . 2 2 . . . . 2 5 3 4 . . . . 12 12 . 12 . Electromagnetic 28 | . 2 . 1 4 4 . . . . . . . . . . . . . . 17 . . . . . . . . Robot Hit Streak 27 | . 3 . . 4 11 11 16 19 7 17 27 9 6 3 . 10 26 23 22 16 3 13 14 15 18 9 15 . Robot Miss Streak 6 | . . . . 1 4 2 5 2 4 5 5 2 2 1 . 3 2 6 2 3 6 3 2 4 5 . 3 . Penetration Max 2 | . . . . . . . . . . . . . . . . . . 1 1 1 . . . . 1 . 2 . Secondary Targets 32 | . . . . 1 1 2 2 4 . 2 3 . . . . 1 1 6 . . . 2 . 3 1 . 3 . Max Gunslinging Chain 2 | . . . . 1 1 1 1 1 . 1 1 . . . . 1 1 1 . . . 1 . 1 1 . 2 . Shots Hit Robots 1549 | . 3 . . 4 62 62 82 110 39 172 142 8 3 3 . 38 174 165 62 40 10 60 4 109 135 7 55 . Core Hits 873 | . 2 . . 4 28 42 30 57 15 90 62 1 1 . . 24 79 74 53 19 6 17 2 70 74 2 120 1 Critical Kills 18 | . . . . . . . . . . . . . . . . . . . . . . . . 3 13 1 1 . Critical Parts Destroyed 31 | . . . . . . . . . . . . . . . . . . 1 . . 1 1 . . 17 . 11 . Critical Strikes 150 | . . . . . 8 7 6 9 5 12 11 . . . . 6 19 7 . 1 1 2 . 3 37 3 13 . Burn 89 | . . . . . 8 7 6 9 5 12 11 . . . . 6 19 6 . . . . . . . . . . Meltdown 3 | . . . . . . . . . . . . . . . . . . . . . . . . 3 . . . . Destroy 53 | . . . . . . . . . . . . . . . . . . 1 . . 1 1 . . 34 3 13 . Blast 3 | . . . . . . . . . . . . . . . . . . . . . . . . . 3 . . . Sever 1 | . . . . . . . . . . . . . . . . . . . . 1 . . . . . . . . Impale 1 | . . . . . . . . . . . . . . . . . . . . . . 1 . . . . . . Melee Attacks 56 | . . . . . . . . . . 16 . . . . . . 8 . . 21 9 2 . . . . . . Impact . | . . . . . . . . . . . . . . . . . . . . . . . . . . . . . Slashing 45 | . . . . . . . . . . 16 . . . . . . 8 . . 21 . . . . . . . . Piercing 11 | . . . . . . . . . . . . . . . . . . . . . 9 2 . . . . . . Sneak Attacks 2 | . . . . . . . . . . . . . . . . . . . . 2 . . . . . . . . Combat Hostiles . | . . . . . . . . . . . . . . . . . . . . . . . . . . . . . Follow-up Attacks . | . . . . . . . . . . . . . . . . . . . . . . . . . . . . . Damage Inflicted 53439 | . 33 . . 45 1296 2062 1811 2792 729 4248 3234 43 42 . . 934 5353 3849 3667 1420 371 1033 98 6386 6151 115 7703 24 Guns 27081 | . 33 . . 45 1296 1173 1610 1959 729 3778 2638 40 42 . . 819 3783 3122 1229 394 211 895 87 1262 1144 34 758 . Cannons 6613 | . . . . . . . 25 235 . . . . . . . . 431 126 688 . . . . 2445 2582 81 . . Explosions 18182 | . . . . . . 889 176 598 . 401 596 . . . . 115 1111 593 1701 352 . . . 2662 2043 . 6945 . Melee 993 | . . . . . . . . . . 37 . . . . . . . . . 660 158 138 . . . . . . Ramming 570 | . . . . . . . . . . 32 . 3 . . . . 28 8 49 14 2 . 11 17 382 . . 24 Kinetic 9995 | . 6 . . . . . . . . . . . . . . . . 2151 1229 394 211 895 87 1262 3337 34 389 . Thermal 24554 | . . . . 12 1245 1173 1635 2194 729 4031 2638 40 42 . . 819 4214 1097 1361 40 . . . 2445 389 81 369 . Explosive 16904 | . . . . . . 889 176 598 . 148 596 . . . . 115 1111 593 1028 . . . . 2662 2043 . 6945 . Electromagnetic 423 | . 27 . . 33 51 . . . . . . . . . . . . . . 312 . . . . . . . . Impact . | . . . . . . . . . . . . . . . . . . . . . . . . . . . . . Slashing 697 | . . . . . . . . . . 37 . . . . . . . . . 660 . . . . . . . . Piercing 296 | . . . . . . . . . . . . . . . . . . . . . 158 138 . . . . . . Highest Corruption 22 | . 1 1 1 1 . . . 8 11 4 4 4 4 2 . . 1 1 6 21 2 3 . 12 22 . 13 . Average Corruption 6 | . 1 1 1 1 . . . 7 9 2 4 4 3 1 . . 1 1 5 11 1 2 . 10 16 . 7 . Corruption Purged 10 | . . . . . . . . . . 1 . . 2 2 . . 3 2 . . . . . . . . . . Corruption Blocked . | . . . . . . . . . . . . . . . . . . . . . . . . . . . . . Effects 384 | . . . 5 3 . . . 44 26 12 56 12 14 2 . . 5 6 20 31 2 34 . 35 71 . 6 . Message Errors 86 | . . . 1 . . . . 8 4 2 12 1 4 1 . . 1 . 6 6 . 10 . 9 20 . 1 . Matter Fused 81 | . . . . . . . . 10 6 2 6 6 2 . . . 1 3 2 10 . 11 . 8 13 . 1 . Heat Flow Errors 40 | . . . . 1 . . . 6 . 1 9 1 1 1 . . . . . 3 1 3 . 3 10 . . . Energy Discharges 51 | . . . 1 1 . . . 7 3 2 12 . 2 . . . . 1 3 4 1 5 . 2 6 . 1 . Parts Rejected 10 | . . . . 1 . . . . 1 1 . . . . . . . . . 1 . 1 . 1 4 . . . Parts Fused 5 | . . . . . . . . 1 . . . . . . . . . . 1 . . . . 2 1 . . . Data Loss (minor) 45 | . . . 1 . . . . 4 7 2 8 2 2 . . . 1 2 2 1 . 3 . 4 6 . . . Data Loss (major) 11 | . . . . . . . . 3 1 . 3 1 1 . . . . . 1 . . . . 1 . . . . Misfires 21 | . . . 2 . . . . 4 1 2 3 1 2 . . . 1 . . 2 . 1 . 2 . . . . Alerts 8 | . . . . . . . . . . . 2 . . . . . 1 . 3 . . . . 1 1 . . . Misdirections 12 | . . . . . . . . . 1 . . . . . . . . . . 4 . . . . 5 . 2 . Weapon Failures 14 | . . . . . . . . 1 2 . 1 . . . . . . . 2 . . . . 2 5 . 1 . Overload Shots . | . . . . . . . . . . . . . . . . . . . . . . . . . . . . . Overflow Damage 1079 | . . . . . . 16 . 50 . 141 47 . . . . . 105 5 149 105 . 8 . 151 163 . 139 . Projectiles 297 | . . . . . . . . . . . . . . . . . 61 . 13 . . . . 105 118 . . . Explosions 632 | . . . . . . 16 . 50 . 141 47 . . . . . 44 5 136 . . . . 46 8 . 139 . Melee 150 | . . . . . . . . . . . . . . . . . . . . 105 . 8 . . 37 . . . Knockbacks 10 | . . . . . . . . . . . . . . . . . . . 1 . . . . . 9 . . . Impact 2 | . . . . . . . . . . . . . . . . . . . 1 . . . . . 1 . . . Kinetic 8 | . . . . . . . . . . . . . . . . . . . . . . . . . 8 . . . Secondary . | . . . . . . . . . . . . . . . . . . . . . . . . . . . . . Self-Inflicted Damage 1180 | . . . . . . 40 . 12 . 75 . . . . . 41 92 17 84 47 1 . . 215 154 . 392 10 Shots 32 | . . . . . . 1 . 1 . 1 . . . . . 1 3 2 3 4 . . . 4 4 . 8 . Rammed 58 | . . . . . . . . . . 4 . 2 . . . . 3 1 4 2 1 . 1 3 29 . . 8 Targets Rammed 62 | . . . . . . . . . . 5 . 2 . . . . 3 1 5 2 1 . 1 3 31 . . 8 Kicked . | . . . . . . . . . . . . . . . . . . . . . . . . . . . . . Crushed 4 | . . . . . . . . . . 1 . . . . . . . . 1 . . . . . 2 . . . Highest Temperature 387 | . 26 . . 112 341 171 . 226 222 342 252 198 164 168 . 36 387 305 134 149 233 183 56 320 248 255 153 32 Average Temperature 81 | . 15 . . 55 117 50 . 37 64 104 76 107 71 86 . 20 92 44 37 41 135 79 35 134 70 124 47 20 Received Heat Transfer 6413 | . 12 . . . 243 216 243 486 135 699 522 . 18 21 . 48 345 1002 420 195 . 9 . 195 1017 18 392 177 Effects 6 | . . . . . 2 . . . . 1 . . . . . . . . . . . . . . . 3 . . Shutdowns 1 | . . . . . 1 . . . . . . . . . . . . . . . . . . . . . . . Energy Bleed 2 | . . . . . 1 . . . . 1 . . . . . . . . . . . . . . . . . . Interference 3 | . . . . . . . . . . . . . . . . . . . . . . . . . . 3 . . Siege Activations 8 | . . . . . . . . . . . . . . . . . 1 . . . . 1 . 3 3 . . . Total Turns 158 | . . . . . . . . . . . . . . . . . 59 . . . . 29 . 20 50 . . . Longest Duration 59 | . . . . . . . . . . . . . . . . . 59 . . . . 29 . 12 22 . . . Robots Corrupted . | . . . . . . . . . . . . . . . . . . . . . . . . . . . . . Combat Hostiles . | . . . . . . . . . . . . . . . . . . . . . . . . . . . . . Parts Fried 3 | . . . . . . . . . . . . . . . . . . . . 1 . . . . 2 . . . Impact Corruptions 3 | . . . . . . . . . . . . . . . . . . . . . . . . . 3 . . . Robots Melted 15 | . . . . . . 1 1 . . 2 . . . . . 2 6 . . . . . . 3 . . . . Combat Hostiles 11 | . . . . . . 1 . . . 2 . . . . . 2 6 . . . . . . . . . . . Parts Melted 150 | . . . . . 10 10 4 14 8 29 11 . . . . 6 43 7 . . . . . 6 1 . 1 . Heat Transferred 47665 | . . . . 37 2923 2590 3552 4374 1813 7869 5550 74 74 . . 1963 10373 2200 1450 50 . . . 1998 370 74 331 . Parts Sabotaged 1 | . . . . . . . . . . . . . . . . . . . . . . . . . . . 1 . Parts Stolen . | . . . . . . . . . . . . . . . . . . . . . . . . . . . . . Parts Stripped . | . . . . . . . . . . . . . . . . . . . . . . . . . . . . . Power Chain Reactions 1 | . . . . . . . . . . . . . . . . . . . . 1 . . . . . . . . Alert | -11 -10 -10 -10 -9 -8 -8 -8 -8 -8 -7 -7 -7 -7 -7 -7 -6 -6 -6 -6 -5 -4 -4 -3 -3 -3 -2 -2 -1 ------- Run | Yrd Mat Min Exi Min Mat Gar Mat Gar Mat Fac Gar Fac Low Low Zio Pro Fac Gar Fac Fac Fac Gar Res Gar Arm Res Tes Acc Peak Influence 2318 | . 35 13 . 90 188 922 680 1413 710 737 1693 978 . . . . 540 1827 1212 603 411 773 451 1586 1547 851 2318 1551 Initial 1390 | . . 13 . . 35 59 449 321 688 255 515 888 . . . . 40 378 959 593 149 287 434 326 832 797 472 1390 Average 668 | . 13 13 . 10 90 510 545 895 584 422 1187 637 . . . . 297 974 1000 469 266 423 440 919 1171 822 1840 1423 Maximum Alert Level 5 | . . . . . . 3 2 4 3 3 5 3 . . . . 2 5 4 2 2 3 2 4 4 3 5 4 Low Security (%) 12 | 100 100 100 . 100 100 16 . . . 5 . . . . . . 33 . . . 25 5 . . . . . . Level 1 16 | . . . . . . 27 . 14 . 31 . 34 . . . . 22 4 . 36 66 52 . 11 . . . . Level 2 34 | . . . . . . 23 100 18 96 58 9 9 . . . . 44 26 . 63 8 33 100 42 . . . . Level 3 18 | . . . . . . 32 . 28 3 3 37 56 . . . . . 33 81 . . 8 . 3 37 100 . . Level 4 16 | . . . . . . . . 39 . . 46 . . . . . . 26 18 . . . . 42 62 . . 100 Level 5 1 | . . . . . . . . . . . 6 . . . . . . 8 . . . . . . . . . . High Security . | . . . . . . . . . . . . . . . . . . . . . . . . . . . . . Max Security 1 | . . . . . . . . . . . . . . . . . . . . . . . . . . . 99 . Squads Dispatched 81 | . 1 . . . 4 . 8 . . 13 . 4 . . . . 15 . 7 7 1 . . . 8 . 12 1 Investigation 10 | . 1 . . . 1 . 1 . . 1 . . . . . . 1 . 2 1 1 . . . 1 . . . Extermination 18 | . . . . . . . . . . 4 . 1 . . . . 8 . 1 2 . . . . 2 . . . Reinforcement 26 | . . . . . 3 . 3 . . 3 . 3 . . . . 5 . 2 4 . . . . 2 . . 1 Assault 19 | . . . . . . . . . . 1 . . . . . . 1 . 2 . . . . . 3 . 12 . Garrison 8 | . . . . . . . 4 . . 4 . . . . . . . . . . . . . . . . . . Intercept . | . . . . . . . . . . . . . . . . . . . . . . . . . . . . . Searches Triggered . | . . . . . . . . . . . . . . . . . . . . . . . . . . . . . Construction Impeded 4 | . . . . . . . . . . 1 . . . . . . 2 . 1 . . . . . . . . . Haulers Reinforced 3 | . . . . . . . . . . 2 . . . . . . 1 . . . . . . . . . . . Active Scanning Responses . | . . . . . . . . . . . . . . . . . . . . . . . . . . . . . Cargo Convoy Interrupts 1 | . . . . . . . . . . . . . . . . . . . . 1 . . . . . . . . Alert ID Control Effect 50 | . . . . . . . . . . . 1 6 . 5 . 1 . 2 . . . 7 6 7 10 . 5 . Stealth | -11 -10 -10 -10 -9 -8 -8 -8 -8 -8 -7 -7 -7 -7 -7 -7 -6 -6 -6 -6 -5 -4 -4 -3 -3 -3 -2 -2 -1 --------- Run | Yrd Mat Min Exi Min Mat Gar Mat Gar Mat Fac Gar Fac Low Low Zio Pro Fac Gar Fac Fac Fac Gar Res Gar Arm Res Tes Acc Distress Signals 19 | . 2 . . . . . . . 1 5 . . . . . . 1 . . 1 1 . 1 . 2 1 1 3 Communications Jammed . | . . . . . . . . . . . . . . . . . . . . . . . . . . . . . Distress Signals . | . . . . . . . . . . . . . . . . . . . . . . . . . . . . . Times Spotted 666 | . 3 2 . 4 17 23 19 34 17 58 33 5 6 13 . 20 48 52 27 22 10 36 6 45 69 4 75 18 Peak Tracking Total 31 | . 4 1 . 4 3 4 5 6 3 7 7 2 3 9 . 4 6 11 7 6 7 7 6 8 14 3 31 11 Tactical Retreats 34 | . . . . . . 1 2 3 . 4 2 . . . . 2 . 2 . 3 4 2 . 2 4 . . 3 Traps | -11 -10 -10 -10 -9 -8 -8 -8 -8 -8 -7 -7 -7 -7 -7 -7 -6 -6 -6 -6 -5 -4 -4 -3 -3 -3 -2 -2 -1 ------- Run | Yrd Mat Min Exi Min Mat Gar Mat Gar Mat Fac Gar Fac Low Low Zio Pro Fac Gar Fac Fac Fac Gar Res Gar Arm Res Tes Acc Traps Triggered 43 | . 1 . . . . 8 . 2 2 2 1 . . . . . 3 13 3 . . 4 . 1 1 . . 2 Indirectly . | . . . . . . . . . . . . . . . . . . . . . . . . . . . . . Trap Hack Attempts . | . . . . . . . . . . . . . . . . . . . . . . . . . . . . . Triggered . | . . . . . . . . . . . . . . . . . . . . . . . . . . . . . Disarmed . | . . . . . . . . . . . . . . . . . . . . . . . . . . . . . Reprogrammed . | . . . . . . . . . . . . . . . . . . . . . . . . . . . . . Reused . | . . . . . . . . . . . . . . . . . . . . . . . . . . . . . Traps Extracted . | . . . . . . . . . . . . . . . . . . . . . . . . . . . . . Installed . | . . . . . . . . . . . . . . . . . . . . . . . . . . . . . Triggered 4 | . . . . . . . . . . . . . . 1 . 1 . . . 2 . . . . . . . . Machines | -11 -10 -10 -10 -9 -8 -8 -8 -8 -8 -7 -7 -7 -7 -7 -7 -6 -6 -6 -6 -5 -4 -4 -3 -3 -3 -2 -2 -1 ---------- Run | Yrd Mat Min Exi Min Mat Gar Mat Gar Mat Fac Gar Fac Low Low Zio Pro Fac Gar Fac Fac Fac Gar Res Gar Arm Res Tes Acc Machines Disabled 67 | . . . . . 1 4 . 6 . 3 5 2 . 1 . . 3 3 12 . 1 8 1 9 6 . 2 . Max in Single Turn 10 | . . . . . 1 1 . 1 . 3 1 . . . . . 1 1 10 . 1 1 1 2 1 . 1 . Garrison Access 5 | . . . . . . . . . . 1 . . . . . . 3 . . 1 . . . . . . . . Garrison Relay 25 | . . . . . . 4 . 5 . . 5 . . . . . . 3 . . . 5 . 3 . . . . Machines Repaired . | . . . . . . . . . . . . . . . . . . . . . . . . . . . . . Machines Dismantled . | . . . . . . . . . . . . . . . . . . . . . . . . . . . . . Machines Sabotaged . | . . . . . . . . . . . . . . . . . . . . . . . . . . . . . Overloaded Fab Kills . | . . . . . . . . . . . . . . . . . . . . . . . . . . . . . Hacking | -11 -10 -10 -10 -9 -8 -8 -8 -8 -8 -7 -7 -7 -7 -7 -7 -6 -6 -6 -6 -5 -4 -4 -3 -3 -3 -2 -2 -1 --------- Run | Yrd Mat Min Exi Min Mat Gar Mat Gar Mat Fac Gar Fac Low Low Zio Pro Fac Gar Fac Fac Fac Gar Res Gar Arm Res Tes Acc Machines Accessed 91 | . 2 . 3 . 3 4 6 2 2 11 3 . 2 1 . . 24 1 6 3 6 3 3 2 1 1 . 2 Terminals 56 | . 2 . . . 2 4 5 2 1 5 3 . . . . . 12 1 5 1 3 3 1 2 1 1 . 2 Fabricators 6 | . . . . . . . . . . 2 . . . . . . 2 . . 1 1 . . . . . . . Repair Stations 1 | . . . . . . . . . . 1 . . . . . . . . . . . . . . . . . . Recycling Units 9 | . . . . . . . . . 1 1 . . . . . . 5 . . . 1 . 1 . . . . . Scanalyzers 2 | . . . . . . . . . . . . . . . . . 1 . 1 . . . . . . . . . Garrison Access 11 | . . . . . 1 . 1 . . 2 . . . . . . 4 . . 1 1 . 1 . . . . . Total Hacks 222 | . 4 . 17 . 9 8 18 3 6 28 5 . 5 1 . . 52 1 31 4 12 6 3 3 1 2 . 3 Successful 106 | . 1 . 17 . 2 1 5 1 2 16 1 . 5 1 . . 27 . 16 1 6 3 1 . . . . . Failed 116 | . 3 . . . 7 7 13 2 4 12 4 . . . . . 25 1 15 3 6 3 2 3 1 2 . 3 Catastrophic 27 | . 2 . . . 3 2 . 1 . 1 1 . . . . . 8 1 1 2 1 1 1 1 1 . . . Database Lockouts . | . . . . . . . . . . . . . . . . . . . . . . . . . . . . . Manual 73 | . . . 1 . 8 . 11 . 1 10 . . . . . . 22 . 15 1 3 . 1 . . . . . Terminals 147 | . 4 . . . 8 8 17 3 5 17 5 . . . . . 30 1 25 1 7 6 1 3 1 2 . 3 Fabricators 13 | . . . . . . . . . . 3 . . . . . . 5 . . 2 3 . . . . . . . Repair Stations 3 | . . . . . . . . . . 3 . . . . . . . . . . . . . . . . . . Recycling Units 13 | . . . . . . . . . 1 2 . . . . . . 8 . . . 1 . 1 . . . . . Scanalyzers 11 | . . . . . . . . . . . . . . . . . 5 . 6 . . . . . . . . . Garrison Access 12 | . . . . . 1 . 1 . . 3 . . . . . . 4 . . 1 1 . 1 . . . . . Terminal Hacks 53 | . 1 . 17 . . 1 2 1 1 6 1 . 5 1 . . 5 . 7 . 2 3 . . . . . . Record 20 | . . . 16 . . . . . . . . . 4 . . . . . . . . . . . . . . . Robot Analysis 4 | . . . . . . . 1 . . . . . . . . . 1 . 2 . . . . . . . . . Prototype ID Bank 6 | . 1 . . . . . 1 . . 2 . . . . . . 1 . 1 . . . . . . . . . Open Door 3 | . . . . . . 1 . . . . . . 1 1 . . . . . . . . . . . . . . Level Access Points 1 | . . . . . . . . . . . . . . . . . . . 1 . . . . . . . . . Branch Access Points 1 | . . . . . . . . . . . . . . . . . . . . . 1 . . . . . . . Emergency Access Points 3 | . . . . . . . . . . . 1 . . . . . . . 1 . . 1 . . . . . . Terminal Index 1 | . . . . . . . . . . . . . . . . . 1 . . . . . . . . . . . Unreport Threat 1 | . . . . . . . . . 1 . . . . . . . . . . . . . . . . . . . Locate Traps 6 | . . . . . . . . . . 3 . . . . . . 1 . 1 . 1 . . . . . . . Registered Components 1 | . . . . . . . . . . 1 . . . . . . . . . . . . . . . . . . Zone Layout 2 | . . . . . . . . . . . . . . . . . 1 . 1 . . . . . . . . . Garrison Registry 1 | . . . . . . . . . . . . . . . . . . . . . . 1 . . . . . . Patrol Navigation 2 | . . . . . . . . 1 . . . . . . . . . . . . . 1 . . . . . . Derelict Proto ID Bank 1 | . . . 1 . . . . . . . . . . . . . . . . . . . . . . . . . Fabricator Hacks 4 | . . . . . . . . . . 1 . . . . . . 2 . . . 1 . . . . . . . Network Status 3 | . . . . . . . . . . 1 . . . . . . 1 . . . 1 . . . . . . . Load Schematic 1 | . . . . . . . . . . . . . . . . . 1 . . . . . . . . . . . Repair Station Hacks 2 | . . . . . . . . . . 2 . . . . . . . . . . . . . . . . . . Scan Component 1 | . . . . . . . . . . 1 . . . . . . . . . . . . . . . . . . Repair 1 | . . . . . . . . . . 1 . . . . . . . . . . . . . . . . . . Recycling Unit Hacks 9 | . . . . . . . . . 1 1 . . . . . . 6 . . . 1 . . . . . . . Report Inventory 7 | . . . . . . . . . 1 1 . . . . . . 4 . . . 1 . . . . . . . Retrieve Components 2 | . . . . . . . . . . . . . . . . . 2 . . . . . . . . . . . Scanalyzer 10 | . . . . . . . . . . . . . . . . . 4 . 6 . . . . . . . . . Insert Component 3 | . . . . . . . . . . . . . . . . . 2 . 1 . . . . . . . . . Analyze 7 | . . . . . . . . . . . . . . . . . 2 . 5 . . . . . . . . . Garrison Access Hacks 12 | . . . . . 1 . 1 . . 3 . . . . . . 4 . . 1 1 . 1 . . . . . Unlock Access 6 | . . . . . 1 . 1 . . 1 . . . . . . 1 . . . 1 . 1 . . . . . Seal Access 5 | . . . . . . . . . . 1 . . . . . . 3 . . 1 . . . . . . . . Coupler Status 1 | . . . . . . . . . . 1 . . . . . . . . . . . . . . . . . . Unauthorized Hacks 16 | . . . . . 1 . 2 . . 3 . . . . . . 6 . 3 . 1 . . . . . . . Terminals 15 | . . . . . 1 . 2 . . 3 . . . . . . 5 . 3 . 1 . . . . . . . Assimilate 5 | . . . . . 1 . . . . . . . . . . . 2 . 1 . 1 . . . . . . . Botnet 10 | . . . . . . . 2 . . 3 . . . . . . 3 . 2 . . . . . . . . . Fabricators 1 | . . . . . . . . . . . . . . . . . 1 . . . . . . . . . . . Prioritize 1 | . . . . . . . . . . . . . . . . . 1 . . . . . . . . . . . Repair Stations . | . . . . . . . . . . . . . . . . . . . . . . . . . . . . . Recycling Units . | . . . . . . . . . . . . . . . . . . . . . . . . . . . . . Scanalyzers . | . . . . . . . . . . . . . . . . . . . . . . . . . . . . . Garrison Access . | . . . . . . . . . . . . . . . . . . . . . . . . . . . . . Data Cores Recovered . | . . . . . . . . . . . . . . . . . . . . . . . . . . . . . Used . | . . . . . . . . . . . . . . . . . . . . . . . . . . . . . Hacking Detections 69 | . 2 . . . 2 4 5 1 2 10 3 . . . . . 16 1 5 2 5 2 3 2 1 1 . 2 Full Trace Events 8 | . 1 . . . 1 . 1 . . . . . . . . . 1 . 2 1 1 . . . . . . . Feedback Events 2 | . . . . . . . . . . . . . . . . . . . . . 2 . . . . . . . Corruption 1 | . . . . . . . . . . . . . . . . . . . . . 1 . . . . . . . Hackware Fried 1 | . . . . . . . . . . . . . . . . . . . . . 1 . . . . . . . Feedback Blocked . | . . . . . . . . . . . . . . . . . . . . . . . . . . . . . Robot Schematics Acquired . | . . . . . . . . . . . . . . . . . . . . . . . . . . . . . Robots Built . | . . . . . . . . . . . . . . . . . . . . . . . . . . . . . Authchips . | . . . . . . . . . . . . . . . . . . . . . . . . . . . . . Time . | . . . . . . . . . . . . . . . . . . . . . . . . . . . . . Total Robot Build Rating . | . . . . . . . . . . . . . . . . . . . . . . . . . . . . . Part Schematics Acquired 3 | . . . . . . . . . . . . . . . . . 2 . 1 . . . . . . . . . Parts Built . | . . . . . . . . . . . . . . . . . . . . . . . . . . . . . Authchips . | . . . . . . . . . . . . . . . . . . . . . . . . . . . . . Time . | . . . . . . . . . . . . . . . . . . . . . . . . . . . . . Total Part Build Rating . | . . . . . . . . . . . . . . . . . . . . . . . . . . . . . Parts Repaired 1 | . . . . . . . . . . 1 . . . . . . . . . . . . . . . . . . Time 38 | . . . . . . . . . . 38 . . . . . . . . . . . . . . . . . . Parts Recycled . | . . . . . . . . . . . . . . . . . . . . . . . . . . . . . Recycled Matter . | . . . . . . . . . . . . . . . . . . . . . . . . . . . . . Retrieved Matter . | . . . . . . . . . . . . . . . . . . . . . . . . . . . . . Retrieved Components 12 | . . . . . . . . . . . . . . . . . 12 . . . . . . . . . . . Parts Scanalyzed 3 | . . . . . . . . . . . . . . . . . 2 . 1 . . . . . . . . . Part Schematics Acquired 3 | . . . . . . . . . . . . . . . . . 2 . 1 . . . . . . . . . Parts Damaged 1 | . . . . . . . . . . . . . . . . . 1 . . . . . . . . . . . Bothacking | -11 -10 -10 -10 -9 -8 -8 -8 -8 -8 -7 -7 -7 -7 -7 -7 -6 -6 -6 -6 -5 -4 -4 -3 -3 -3 -2 -2 -1 ------------ Run | Yrd Mat Min Exi Min Mat Gar Mat Gar Mat Fac Gar Fac Low Low Zio Pro Fac Gar Fac Fac Fac Gar Res Gar Arm Res Tes Acc Used RIF Installer 7 | . . . . . . . . 1 . . 1 . . . . . . 2 . . . 1 . 2 . . . . Coupler Efficiency 1 | . . . . . . . . . . . . . . . . . . . . . . 1 . . . . . . Zone Cloak 1 | . . . . . . . . . . . . . . . . . . 1 . . . . . . . . . . Robot Detection 1 | . . . . . . . . . . . . . . . . . . 1 . . . . . . . . . . Watcher Feeds 1 | . . . . . . . . . . . . . . . . . . . . . . . . 1 . . . . Patrol Navigation 1 | . . . . . . . . . . . . . . . . . . . . . . . . 1 . . . . Alert ID Control 1 | . . . . . . . . . . . 1 . . . . . . . . . . . . . . . . . Robots Hacked 86 | . . . . . . . . 3 2 6 12 3 1 2 . 2 3 10 4 . . 17 1 7 10 1 2 . Non-combat 9 | . . . . . . . . . . . . 3 . . . . 1 . 4 . . . 1 . . . . . Combat 77 | . . . . . . . . 3 2 6 12 . 1 2 . 2 2 10 . . . 17 . 7 10 1 2 . Robot Hacks Applied 98 | . . . . . . . . 3 2 6 13 7 1 2 . 2 3 12 4 . . 19 1 8 12 1 2 . parse_system 7 | . . . . . . . . . . . 2 . . . . 1 1 . . . . . 1 . 1 . 1 . no_distress 1 | . . . . . . . . . . . . . . . . . . . 1 . . . . . . . . . drop_inventory 4 | . . . . . . . . . . . . 1 . . . . . . 3 . . . . . . . . . purge_threat 5 | . . . . . . . . . . . . 5 . . . . . . . . . . . . . . . . locate_traps 1 | . . . . . . . . . . . . 1 . . . . . . . . . . . . . . . . scatter_targeting 1 | . . . . . . . . . . . . . . 1 . . . . . . . . . . . . . . disrupt_area 1 | . . . . . . . . . . . 1 . . . . . . . . . . . . . . . . . spike_heat 2 | . . . . . . . . . . 1 . . . . . . . 1 . . . . . . . . . . overload_power 2 | . . . . . . . . . . . 1 . . . . . . . . . . . . 1 . . . . amplify_resonance 12 | . . . . . . . . 2 1 . 4 . . . . . . 1 . . . 2 . . 1 . 1 . disable_weapons 2 | . . . . . . . . . . 1 . . . . . . . 1 . . . . . . . . . . reboot_system 1 | . . . . . . . . . . . . . . . . . . 1 . . . . . . . . . . go_dormant 2 | . . . . . . . . . . . . . . . . . . . . . . . . . 1 1 . . overwrite_iff 35 | . . . . . . . . 1 . 2 2 . 1 1 . 1 . 6 . . . 12 . 3 6 . . . formatsys_high 22 | . . . . . . . . . 1 2 3 . . . . . 2 2 . . . 5 . 4 3 . . . Relay Couplers Released 103 | . . . . . . 20 . 17 . . 19 . . . . . . 14 . . . 20 . 13 . . . . Machine Destruction 100 | . . . . . . 17 . 17 . . 19 . . . . . . 14 . . . 20 . 13 . . . . Programmers 3 | . . . . . . 3 . . . . . . . . . . . . . . . . . . . . . . Attached 38 | . . . . . . . . 2 1 1 6 2 . . . . . 6 1 2 1 11 . 2 2 . 1 . Fabnet Peak Effective % . | . . . . . . . . . . . . . . . . . . . . . . . . . . . . . Robots Rewired 13 | . . . . . . . . . . 1 3 . . 2 . . . 4 . 1 . . . 1 . . 1 . Allies Hacked 5 | . . . . . . . . . . . . . . . . . . 2 . . . . . 2 1 . . . Hacks Repelled . | . . . . . . . . . . . . . . . . . . . . . . . . . . . . . Allies | -11 -10 -10 -10 -9 -8 -8 -8 -8 -8 -7 -7 -7 -7 -7 -7 -6 -6 -6 -6 -5 -4 -4 -3 -3 -3 -2 -2 -1 -------- Run | Yrd Mat Min Exi Min Mat Gar Mat Gar Mat Fac Gar Fac Low Low Zio Pro Fac Gar Fac Fac Fac Gar Res Gar Arm Res Tes Acc Total Allies 77 | . . . . . . 1 . 1 1 5 10 . 1 3 . 1 6 11 . 1 1 17 . 8 9 . 1 . Largest Group 7 | . . . . . . 1 1 1 1 2 5 5 6 7 7 4 3 4 4 1 1 3 3 3 2 . 1 . Highest-Rated Group 313 | . . . . . . 25 25 16 15 64 253 253 282 313 313 187 93 116 116 49 10 141 141 172 178 . 145 . Highest-Rated Ally 145 | . . . . . . 25 25 16 15 32 95 95 95 95 95 95 31 47 32 49 10 49 49 116 89 . 145 . Total Orders 4 | . . . . . . . . . . . . . . . . . . . . . . . . 4 . . . . STAY 1 | . . . . . . . . . . . . . . . . . . . . . . . . 1 . . . . ROAM 1 | . . . . . . . . . . . . . . . . . . . . . . . . 1 . . . . FOLLOW 2 | . . . . . . . . . . . . . . . . . . . . . . . . 2 . . . . Ally Attacks 388 | . . . . . . . 7 2 3 29 28 25 15 16 . 31 8 35 8 1 . 24 28 58 45 . 25 . Total Damage 12467 | . . . . . . . 169 13 46 630 490 990 525 718 . 801 85 1017 227 56 . 866 725 2096 1405 . 1608 . Kills 87 | . . . . . . . 1 . . 4 6 10 4 9 . 5 . 6 1 . . 7 6 8 10 . 10 . Allies Corrupted . | . . . . . . . . . . . . . . . . . . . . . . . . . . . . . Allies Melted 2 | . . . . . . . . . . . . . . 1 . . . 1 . . . . . . . . . . Intel | -11 -10 -10 -10 -9 -8 -8 -8 -8 -8 -7 -7 -7 -7 -7 -7 -6 -6 -6 -6 -5 -4 -4 -3 -3 -3 -2 -2 -1 ------- Run | Yrd Mat Min Exi Min Mat Gar Mat Gar Mat Fac Gar Fac Low Low Zio Pro Fac Gar Fac Fac Fac Gar Res Gar Arm Res Tes Acc Robot Analysis Total 4 | . . . . . . . 1 . . . . . . . . . 1 . 2 . . . . . . . . . Derelict Logs Recovered 3 | . . . . 1 . . . . . . . . 1 1 . . . . . . . . . . . . . . Drone Launches . | . . . . . . . . . . . . . . . . . . . . . . . . . . . . . Drone Recoveries . | . . . . . . . . . . . . . . . . . . . . . . . . . . . . . Exploration | -11 -10 -10 -10 -9 -8 -8 -8 -8 -8 -7 -7 -7 -7 -7 -7 -6 -6 -6 -6 -5 -4 -4 -3 -3 -3 -2 -2 -1 ------------- Run | Yrd Mat Min Exi Min Mat Gar Mat Gar Mat Fac Gar Fac Low Low Zio Pro Fac Gar Fac Fac Fac Gar Res Gar Arm Res Tes Acc Turns Passed 30951 | 49 214 95 517 244 874 1443 1229 1509 612 3053 2249 713 624 584 330 905 4217 2799 971 1264 386 1500 374 1713 1523 330 312 318 Spaces Moved 16399 | 36 193 76 511 206 483 1018 703 718 286 1321 1110 430 388 362 196 462 1855 891 318 554 699 1091 224 833 610 199 161 465 Core 1226 | 3 . . . . . . . . . . . . . . . . . 1 . 322 382 . . . . . 53 465 Treads 11015 | . . . . . . . 248 718 286 1321 1110 430 388 362 196 462 1855 779 318 . . 568 224 833 610 199 108 . Legs 1141 | . . . . . . 343 455 . . . . . . . . . . 111 . 232 . . . . . . . . Wheels 2177 | 33 193 76 511 206 483 675 . . . . . . . . . . . . . . . . . . . . . . Hover . | . . . . . . . . . . . . . . . . . . . . . . . . . . . . . Flight 840 | . . . . . . . . . . . . . . . . . . . . . 317 523 . . . . . . Fastest Speed 20 | 50 100 100 100 100 100 100 120 160 160 151 158 158 158 158 158 166 163 190 240 50 35 20 150 150 145 155 50 50 Average Speed 150 | 97 100 100 100 100 109 107 135 160 161 181 163 158 158 158 164 166 195 237 251 203 43 94 154 155 158 155 120 50 Slowest Speed 2000 | 100 100 100 100 100 115 120 240 160 163 243 243 158 158 158 166 166 325 1600 325 2000 400 160 156 156 225 155 155 50 Overloaded Moves . | . . . . . . . . . . . . . . . . . . . . . . . . . . . . . Propulsion Burnouts . | . . . . . . . . . . . . . . . . . . . . . . . . . . . . . Robots Hopped 4 | . . . . . . . . . . . . . . . . . . 2 . . 2 . . . . . . . Cave-ins Triggered . | . . . . . . . . . . . . . . . . . . . . . . . . . . . . . Exploration Rate (%) 42 | 3 35 32 78 35 44 84 54 67 34 34 91 16 60 57 12 62 55 69 14 23 20 90 9 70 36 7 29 14 Regions Visited 28 Branch Regions 9 Pre-discovered Areas 3 | . . . . 2 . . . . . . . . 1 . . . . . . . . . . . . . . . Known Exits Taken 7 | . . . . . 1 . 1 . . 1 . . . . . . 1 . 1 . 1 . 1 . . . . . Unknown Exits Taken 15 | 1 1 1 1 1 . . . . 1 . . 1 1 1 1 1 . . . 1 . . . . 1 1 1 . Scrap Searched 18 | . . . . . . . . . . . . . 13 1 . 4 . . . . . . . . . . . . Spaces Dug 73 | . . . . . . . 2 . . 15 . . . . . . 31 . 3 7 . . 1 3 7 2 . 2 Terrain Destroyed 801 | . . . . . . 19 34 46 . 43 27 . . . . 9 96 32 56 9 6 7 1 166 171 3 74 2 Melee 30 | . . . . . . . . . . 15 . . . . . . 8 . . 7 . . . . . . . . Projectile 147 | . . . . . . 1 5 1 . . 2 . . . . . 43 10 15 . 6 5 1 30 23 3 . 2 AOE 617 | . . . . . . 18 29 45 . 28 25 . . . . 9 45 20 41 2 . . . 136 145 . 74 . Terrain Rammed . | . . . . . . . . . . . . . . . . . . . . . . . . . . . . . Walls Destroyed . | . . . . . . . . . . . . . . . . . . . . . . . . . . . . . Machines Disabled . | . . . . . . . . . . . . . . . . . . . . . . . . . . . . . Actions | -11 -10 -10 -10 -9 -8 -8 -8 -8 -8 -7 -7 -7 -7 -7 -7 -6 -6 -6 -6 -5 -4 -4 -3 -3 -3 -2 -2 -1 --------- Run | Yrd Mat Min Exi Min Mat Gar Mat Gar Mat Fac Gar Fac Low Low Zio Pro Fac Gar Fac Fac Fac Gar Res Gar Arm Res Tes Acc Total 20554 | 47 210 95 519 236 737 1230 861 902 373 1732 1360 458 397 371 203 544 2254 1445 397 643 753 1498 241 1107 953 214 224 550 Wait 1580 | . 9 20 . 19 176 82 50 33 45 155 53 9 3 3 2 32 193 289 4 5 5 184 7 61 80 1 7 53 Move 16368 | 35 192 75 510 205 483 1017 703 717 285 1320 1109 429 387 361 195 461 1855 886 317 554 695 1090 223 832 609 198 160 465 Hop 4 | . . . . . . . . . . . . . . . . . . 2 . . 2 . . . . . . . Pick Up 207 | 6 4 . 1 1 10 4 7 7 . 27 16 1 1 . 1 3 12 24 4 4 7 19 . 23 15 6 1 3 Fast Attach 175 | 6 1 . . 1 4 6 13 3 2 8 9 . 1 . . 2 8 18 . 6 8 30 1 20 24 . 3 1 Attach 95 | . . . . 3 3 1 1 1 1 10 1 1 . . . 2 4 8 4 10 6 8 . 2 16 2 8 3 Detach 50 | . . . 2 1 1 1 1 1 . 3 1 . 1 . . . 1 4 . 2 4 9 . 5 9 . 1 3 Swap 261 | . . . 1 1 4 9 10 26 4 36 23 4 . . 4 5 29 33 12 5 . 10 2 22 18 . 3 . Drop 263 | . 2 . 5 1 9 6 14 17 2 31 25 2 1 . 1 2 16 42 1 4 7 31 1 19 19 1 2 2 Fire 1303 | . 2 . . 4 47 76 62 97 34 121 118 10 3 6 . 37 125 112 50 30 9 61 6 118 130 6 37 2 Melee 56 | . . . . . . . . . . 16 . . . . . . 8 . . 21 9 2 . . . . . . Ram 11 | . . . . . . . . . . . . . . . . . . . . 2 1 . . . . . . 8 Kick . | . . . . . . . . . . . . . . . . . . . . . . . . . . . . . Crush 51 | . . . . . . . . . . 5 . 2 . . . . 3 1 5 . . . 1 3 31 . . . Escape Stasis 118 | . . . . . . 28 . . . . . . . . . . . 24 . . . 54 . . . . 2 10 Rewire 12 | . . . . . . . . . . . 5 . . 1 . . . 2 . . . . . 2 2 . . . Trap . | . . . . . . . . . . . . . . . . . . . . . . . . . . . . . Miscellaneous . | . . . . . . . . . . . . . . . . . . . . . . . . . . . . . Route ------- -11/Scrapyard -10/Materials -10/Mines -10/Exiles -9/Mines -8/Materials -8/Garrison (discovered 3 exits: *Mat x3) -8/Materials (discovered 2 exits: *Fac / Gar) -8/Garrison (discovered 2 exits: *Mat x2) -8/Materials -7/Factory (discovered 2 exits: *Low / Gar) -7/Garrison (discovered 3 exits: [*Fac x3]) -7/Factory -7/Lower Caves -7/Lower Caves -7/Zion -6/Proximity Caves -6/Factory (discovered 5 exits: *Fac x2 / [*Low x2] / Gar) -6/Garrison (discovered 3 exits: *Fac x3) -6/Factory (discovered 4 exits: *Fac x4) -5/Factory -4/Factory (discovered 5 exits: Upp x2 / Ext x2 / Gar) -4/Garrison (discovered 3 exits: *Res x3) -3/Research -3/Garrison (discovered 2 exits: *Arm x2) -3/Armory -2/Research -2/Testing -1/Access History --------- Turn | Location | Event 24 | -11/Scrapyard | Discovered new exit (range 14) 50 | -11/Scrapyard | Entered Materials 115 | -10/Materials | Discovered new exit (range 15) 216 | -10/Materials | Met 8R-AWN 264 | -10/Materials | Entered Mines 265 | -10/Mines | Followed 8R-AWN into the Mines 313 | -10/Mines | Build established: Mutant 351 | -10/Mines | Discovered new exit (range 5) 359 | -10/Mines | Entered Exiles 383 | -10/Exiles | Welcomed by 8R-AWN 398 | -10/Exiles | Met EX-HEX 433 | -10/Exiles | Met EX-BIN 536 | -10/Exiles | Met EX-DEC 584 | -10/Exiles | Visited The Gauntlet 651 | -10/Exiles | Aligned with FarCom system 652 | -10/Exiles | Given EX-Vault access code 675 | -10/Exiles | Opened EX-Vault 686 | -10/Exiles | Found Longsword +1 708 | -10/Exiles | Warned to stay clear of 0b10 Research branches 866 | -10/Exiles | Discovered new exit (range 11) 876 | -10/Exiles | Left Exiles lab with Longsword +1 876 | -10/Exiles | Entered Mines 951 | -9/Mines | Found a damaged Exp. Sensor Array with a note attached 953 | -9/Mines | Found Prototype Device 993 | -9/Mines | Learned location of Storage (-7) 1013 | -9/Mines | Identified Exp. Sensor Array 1112 | -9/Mines | Discovered new exit (range 7) 1120 | -9/Mines | Entered Materials 1120 | -8/Materials | Evolved 4 slots: Propulsion x2, Utility x2 1994 | -8/Materials | Identified exit to Garrison 1994 | -8/Materials | Entered Garrison 2205 | -8/Garrison | Triggered checkpoint 2234 | -8/Garrison | Garrison Relay disabled 2340 | -8/Garrison | Build established: Scavenger-Mutant 2351 | -8/Garrison | Triggered checkpoint 2424 | -8/Garrison | Discovered new exit (range 12) 2466 | -8/Garrison | Triggered checkpoint 2476 | -8/Garrison | Garrison Relay disabled 2609 | -8/Garrison | Triggered checkpoint 2702 | -8/Garrison | Triggered checkpoint 2800 | -8/Garrison | Discovered new exit (range 11) 2831 | -8/Garrison | Triggered checkpoint 2868 | -8/Garrison | Garrison Relay disabled 3006 | -8/Garrison | Triggered checkpoint 3019 | -8/Garrison | Garrison Relay disabled 3046 | -8/Garrison | Discovered new exit (range 10) 3102 | -8/Garrison | Rescued a captive Derelict 3437 | -8/Garrison | Entered Materials 3437 | -8/Materials | Accompanied by 1 ally 3476 | -8/Materials | Garrison activated, responded to threat 3581 | -8/Materials | Core integrity fell below 50% 3622 | -8/Materials | Met 7R-MNS 3629 | -8/Materials | Lost 3 parts (1p1n1w) 3770 | -8/Materials | Discovered new exit (range 6) 4545 | -8/Materials | Garrison activated, responded to threat 4666 | -8/Materials | Identified exit to Garrison 4666 | -8/Materials | Entered Garrison 4846 | -8/Garrison | Triggered checkpoint 4931 | -8/Garrison | Garrison Relay disabled 5016 | -8/Garrison | Garrison Relay disabled 5043 | -8/Garrison | Garrison Relay disabled 5278 | -8/Garrison | Triggered checkpoint 5362 | -8/Garrison | Discovered new exit (range 10) 5444 | -8/Garrison | Triggered checkpoint 5486 | -8/Garrison | Garrison Relay disabled 5651 | -8/Garrison | Installed Relay Interface Framework 5794 | -8/Garrison | Triggered checkpoint 6003 | -8/Garrison | Discovered new exit (range 12) 6063 | -8/Garrison | Triggered checkpoint 6175 | -8/Garrison | Entered Materials 6352 | -8/Materials | Build established: Bothacker-Mutant 6506 | -8/Materials | Core integrity fell below 20% 6542 | -8/Materials | System corruption reached 10% 6763 | -8/Materials | Discovered new exit (range 15) 6787 | -8/Materials | Entered Factory 6787 | -7/Factory | Evolved 2 slots: Utility x2 7340 | -7/Factory | Garrison activated, responded to threat 8063 | -7/Factory | Garrison activated, responded to threat 8480 | -7/Factory | Discovered new exit (range 5) 9198 | -7/Factory | Found Prototype Launcher 9198 | -7/Factory | Identified Rocket Array 9356 | -7/Factory | Repaired Adv. Treads 9587 | -7/Factory | First assault squad dispatched 9823 | -7/Factory | Identified exit to Garrison 9840 | -7/Factory | Entered Garrison 9973 | -7/Garrison | Garrison Relay disabled 10086 | -7/Garrison | Triggered checkpoint 10118 | -7/Garrison | Triggered checkpoint 10165 | -7/Garrison | Garrison Relay disabled 10216 | -7/Garrison | Discovered new exit (range 10) 10324 | -7/Garrison | Triggered checkpoint 10392 | -7/Garrison | Discovered new exit (range 11) 10434 | -7/Garrison | Triggered checkpoint 10496 | -7/Garrison | Triggered checkpoint 10541 | -7/Garrison | Garrison Relay disabled 10786 | -7/Garrison | Expanded RIF knowledge: Alert ID Control 10856 | -7/Garrison | Discovered new exit (range 15) 10880 | -7/Garrison | Triggered checkpoint 10973 | -7/Garrison | Garrison Relay disabled 11083 | -7/Garrison | Triggered checkpoint 11115 | -7/Garrison | Garrison Relay disabled 11635 | -7/Garrison | Found embedded Infiltrators 12089 | -7/Garrison | Entered Factory 12089 | -7/Factory | Accompanied by 5 allies 12721 | -7/Factory | Discovered new exit (range 7) 12802 | -7/Factory | Entered Lower Caves 12802 | -7/Lower Caves | Accompanied by 5 allies 12824 | -7/Lower Caves | Encountered a Warlord checkpoint 13199 | -7/Lower Caves | Learned Extension terminal intel 13199 | -7/Lower Caves | Learned Factory garrison access intel 13199 | -7/Lower Caves | Learned Armory garrison access intel 13377 | -7/Lower Caves | Discovered new exit (range 10) 13426 | -7/Lower Caves | Entered another Lower Caves area 13426 | -7/Lower Caves | Accompanied by 5 allies 13496 | -7/Lower Caves | Encountered a Warlord checkpoint 13695 | -7/Lower Caves | Attracted the attention of an 0b10 outpost 13923 | -7/Lower Caves | Attracted the attention of an 0b10 checkpoint 13988 | -7/Lower Caves | Discovered new exit (range 10) 13989 | -7/Lower Caves | Learned location of 1 exit from Factory 14010 | -7/Lower Caves | Entered Zion 14010 | -7/Zion | Accompanied by 7 allies 14076 | -7/Zion | Found CR-A16's Pointy Stick 14088 | -7/Zion | Discovered new exit (range 15) 14251 | -7/Zion | Visited the Megawrench Repair Shop 14251 | -7/Zion | Megawrench repaired 7 parts 14340 | -7/Zion | Entered Proximity Caves 14340 | -6/Proximity Caves | Accompanied by 7 allies 14375 | -6/Proximity Caves | Lost 3 allies 14408 | -6/Proximity Caves | Attracted the attention of an 0b10 checkpoint 14416 | -6/Proximity Caves | Core integrity fell below 50% 14448 | -6/Proximity Caves | Lost 3 allies 15128 | -6/Proximity Caves | Discovered new exit (range 7) 15245 | -6/Proximity Caves | Entered Factory 15245 | -6/Factory | Evolved 2 slots: Utility x1, Weapon x1 15246 | -6/Factory | Identified exit to Factory 15247 | -6/Factory | Loaded intel: 4 garrison access locations 15545 | -6/Factory | Build established: Bothacker-Tank 15956 | -6/Factory | Build established: Bothacker-Skirmisher 16080 | -6/Factory | Discovered new exit (range 16) 16193 | -6/Factory | Discovered exit to Factory (range 15) 16258 | -6/Factory | Build established: Bothacker-Gunner 17091 | -6/Factory | Build established: Bothacker-Skirmisher 18759 | -6/Factory | Discovered new exit (range 16) 19324 | -6/Factory | Allied Derelicts emerged from ambush trap array 19445 | -6/Factory | First assault squad dispatched 19462 | -6/Factory | Identified exit to Garrison 19462 | -6/Factory | Entered Garrison 19462 | -6/Garrison | Accompanied by 3 allies 19544 | -6/Garrison | Triggered checkpoint 19550 | -6/Garrison | Triggered checkpoint 19607 | -6/Garrison | Lost 4 allies 19618 | -6/Garrison | Destroyed 10 combat bots 19624 | -6/Garrison | Lost 9 parts (2p4n2u1w) 19826 | -6/Garrison | Triggered checkpoint 19871 | -6/Garrison | Discovered new exit (range 11) 19921 | -6/Garrison | Core integrity fell below 50% 19956 | -6/Garrison | Triggered checkpoint 20319 | -6/Garrison | Garrison Relay disabled 20352 | -6/Garrison | Expanded RIF knowledge: Zone Cloak 20397 | -6/Garrison | Expanded RIF knowledge: Robot Detection 20698 | -6/Garrison | Build established: Botlord-Skirmisher 20720 | -6/Garrison | Triggered checkpoint 21050 | -6/Garrison | Triggered checkpoint 21059 | -6/Garrison | Discovered new exit (range 13) 21228 | -6/Garrison | Triggered checkpoint 21464 | -6/Garrison | Triggered checkpoint 21689 | -6/Garrison | Discovered new exit (range 11) 21764 | -6/Garrison | Triggered checkpoint 21985 | -6/Garrison | Garrison Relay disabled 22261 | -6/Garrison | Entered Factory 22261 | -6/Factory | Accompanied by 4 allies 22388 | -6/Factory | Lost 4 allies 22611 | -6/Factory | First assault squad dispatched 22979 | -6/Factory | Core integrity fell below 20% 23016 | -6/Factory | Lost 3 parts (1n2w) 23143 | -6/Factory | Lost 3 parts (2n1w) 23232 | -6/Factory | Entered another Factory area 23232 | -5/Factory | Evolved 2 slots: Propulsion x1, Utility x1 23274 | -5/Factory | Build established: Botlord-Mutant 23651 | -5/Factory | P-70 Sage assimilated allied Sentinel 6a 23918 | -5/Factory | System corruption reached 10% 23972 | -5/Factory | Lost 7 parts (3n1u3w) 24117 | -5/Factory | Cargo convoy interrupted 24201 | -5/Factory | Build established: Bothacker-Mutant 24335 | -5/Factory | Released all parts (9) 24366 | -5/Factory | Lost 3 parts (2u1w) 24386 | -5/Factory | Core integrity fell below 50% 24435 | -5/Factory | Core integrity fell below 20% 24494 | -5/Factory | Discovered new exit (range 4) 24496 | -5/Factory | Entered another Factory area 24496 | -4/Factory | Evolved 2 slots: Propulsion x1, Utility x1 24724 | -4/Factory | Hacking Suite fried by hacking feedback 24803 | -4/Factory | Identified exit to Upper Caves 24803 | -4/Factory | Identified exit to Extension 24822 | -4/Factory | Build established: Hacker-Mutant 24882 | -4/Factory | Identified exit to Garrison 24882 | -4/Factory | Entered Garrison 24886 | -4/Garrison | Expanded RIF knowledge: Coupler Efficiency 24897 | -4/Garrison | Triggered checkpoint 24928 | -4/Garrison | Garrison Relay disabled 25007 | -4/Garrison | Spotted B-86 Titan 25106 | -4/Garrison | Triggered checkpoint 25108 | -4/Garrison | Triggered checkpoint 25156 | -4/Garrison | Triggered checkpoint 25158 | -4/Garrison | Discovered new exit (range 13) 25184 | -4/Garrison | Lost 6 allies 25186 | -4/Garrison | Triggered checkpoint 25219 | -4/Garrison | Garrison Relay disabled 25615 | -4/Garrison | Build established: Botlord-Skirmisher 25673 | -4/Garrison | Discovered new exit (range 12) 25750 | -4/Garrison | Triggered checkpoint 25782 | -4/Garrison | Discovered new exit (range 42) 25782 | -4/Garrison | Discovered new exit (range 18) 25782 | -4/Garrison | Discovered new exit (range 76) 25795 | -4/Garrison | Garrison Relay disabled 26067 | -4/Garrison | Found Unknown Device 26067 | -4/Garrison | Identified Adv. Force Booster 26206 | -4/Garrison | Garrison Relay disabled 26255 | -4/Garrison | Triggered checkpoint 26278 | -4/Garrison | Garrison Relay disabled 26318 | -4/Garrison | Found Relay Coupler [Proto] 26320 | -4/Garrison | Found Relay Coupler [Proto] 26338 | -4/Garrison | Build established: Botlord-Tank 26382 | -4/Garrison | Entered Research 26382 | -3/Research | Accompanied by 3 allies 26382 | -3/Research | Evolved 2 slots: Utility x2 26748 | -3/Research | Identified exit to Garrison 26756 | -3/Research | Entered Garrison 26756 | -3/Garrison | Accompanied by 2 allies 26850 | -3/Garrison | Triggered checkpoint 27229 | -3/Garrison | Garrison Relay disabled 27261 | -3/Garrison | Found Fusion Bomb Launcher 27276 | -3/Garrison | Found Fusion Bomb Launcher 27518 | -3/Garrison | Expanded RIF knowledge: Patrol Navigation 27604 | -3/Garrison | Build established: Botlord-Skirmisher 27682 | -3/Garrison | Triggered checkpoint 27684 | -3/Garrison | Triggered checkpoint 27686 | -3/Garrison | Spotted B-86 Titan 27694 | -3/Garrison | Destroyed B-86 Titan 27723 | -3/Garrison | Destroyed 11 combat bots 27739 | -3/Garrison | Triggered checkpoint 27740 | -3/Garrison | System corruption reached 10% 27741 | -3/Garrison | Triggered checkpoint 27799 | -3/Garrison | Destroyed 10 combat bots 27897 | -3/Garrison | Triggered checkpoint 27920 | -3/Garrison | Garrison Relay disabled 27984 | -3/Garrison | Discovered new exit (range 14) 28157 | -3/Garrison | Discovered new exit (range 14) 28160 | -3/Garrison | Spotted B-75 Beast 28166 | -3/Garrison | Rewired B-86 Titan 28189 | -3/Garrison | Allies destroyed B-75 Beast 28221 | -3/Garrison | Found Unknown Protection 28221 | -3/Garrison | Identified Hvy. Reflective Plating 28320 | -3/Garrison | Triggered checkpoint 28363 | -3/Garrison | Expanded RIF knowledge: Watcher Feeds 28378 | -3/Garrison | Garrison Relay disabled 28402 | -3/Garrison | Triggered checkpoint 28469 | -3/Garrison | Entered Armory 28469 | -3/Armory | Accompanied by 1 ally 28722 | -3/Armory | Lost 6 parts (1p1u4w) 29102 | -3/Armory | Build established: Hauler-Mutant 29316 | -3/Armory | Core integrity fell below 50% 29469 | -3/Armory | First assault squad dispatched 29668 | -3/Armory | Build established: Botlord-Gunner 29702 | -3/Armory | Destroyed 8 combat bots 29811 | -3/Armory | Found Prototype Hackware 29811 | -3/Armory | Identified Exp. System Shield 29815 | -3/Armory | Found Prototype Device 29815 | -3/Armory | Identified Exp. ECM Suite 29902 | -3/Armory | Discovered new exit (range 6) 29992 | -3/Armory | Entered Research 29992 | -2/Research | Evolved 2 slots: Power x1, Weapon x1 30140 | -2/Research | Discovered new exit (range 13) 30322 | -2/Research | Entered Testing 30323 | -2/Testing | Maximum security lockdown engaged 30326 | -2/Testing | Spotted PG-G5EPIFX6W8 30327 | -2/Testing | Rewired PG-G5EPIFX6W8 30460 | -2/Testing | Spotted Executioner 30488 | -2/Testing | Allies destroyed Executioner 30506 | -2/Testing | Found Prototype Processor 30506 | -2/Testing | Identified Exp. Core Analyzer 30540 | -2/Testing | Spotted Executioner 30548 | -2/Testing | Destroyed Executioner 30551 | -2/Testing | Spotted Investigator 30552 | -2/Testing | Scanned by Researcher 30552 | -2/Testing | Spotted Striker 30559 | -2/Testing | System corruption reached 10% 30566 | -2/Testing | Destroyed Striker 30608 | -2/Testing | Released all parts (14) 30611 | -2/Testing | Spotted Striker 30612 | -2/Testing | Spotted Executioner 30612 | -2/Testing | Spotted Striker 30615 | -2/Testing | Destroyed 21 combat bots 30622 | -2/Testing | Lost 11 parts (2p2n2u5w) 30624 | -2/Testing | Discovered new exit (range 15) 30633 | -2/Testing | Core integrity fell below 50% 30634 | -2/Testing | Entered Access 30634 | -1/Access | Evolved 2 slots: Utility x2 30906 | -1/Access | Build established: Mutant 30927 | -1/Access | Core integrity fell below 50% 30947 | -1/Access | Core integrity fell below 20% 30952 | -1/Access | Destroyed by H-88 Terminator with KE Penetrator Last Messages --------------- 30913_ Slammed into G-73 Enforcer. 30926_ Penetrated by Slug. 30926_ Slug penetrates Wall. 30933_ Penetrated by Slug. 30933_ Slug penetrates Wave Collapse Detector. 30933_ Wave Collapse Detector explodes. 30933_ Penetrated by Slug. 30936_ Slug penetrates Recycling Unit. 30936_ Imp. System Shield destroyed. 30936_ Penetrated by Slug. 30939_ Slug penetrates Wall. 30939_ Penetrated by Slug. 30939_ Slug penetrates A-15 Conveyor. 30946_ Slug penetrates Wall. 30946_ Penetrated by Slug. 30946_ Slug penetrates R-10 Processor. 30949_ Penetrated by Slug. 30952_ P-80 Master resets G-73 Enforcer, system corruption cleaned. 30952_ Penetrated by Slug. Map ----- +----------------------------------------------------+ | ????# #??????????????????????????# #?? | | ????? #??????????????????????????# #?? | | ?????###+#?????????????????????????????# #?? | | ???????????????????????????????????????? ??? | | ?????????????????????????????????????????????????? | | ?????????????????????????????????????????????????? | | ?????????????????????????????????????????????????? | | ?????????????????????????????????????????????????? | | ?????????????????????????????????????????????????? | | ?????????????????????????????????????????????????? | | ?????????????????????????????????????????????????? | | ?????????????????????????#???????????????????????? | | ?????????????????#??????? ???????????????????????? | | ???????????????? #??????? ???????????????????????? | | ???????????????? ##+#???? ???????????????????????? | | ??????????#+#??? ????? ???????????????????????? | | ??????????# #??? ?????? ???????????????????????? | | ??######### #??? ?????# #??????????????????????? | | ??# ## #??# ??????# #??????????????????????? | | ### ! ## ##?# #?##???# #?????????C????w???????? | | / # ### # ???# #??????????????????????? | | ### / + ???+ #??????????????????????? | | ??# #g # ! ???# #??????????????????????? | | ??# #### # ????# #??????????????????????? | | ?############ g # ????# +??????????????????????? | | # ????#@#??????????????????????? | | g ###### #??????????????????????? | | g #??????????????????????? | | Y #??????????????????????? | | g #??????????????????????? | | ?######"" " gg############???????????? | | ??????#"" """ # #???????????? | | ??????#"Y """ # #???????????? | | ??????#"" " p/ #???????????? | | ??????#"" # " #???????????? | | ??????# #""" #???????????? | | ??????# h # """ #???????????? | | ??????# R # " #???????????? | | ??????# h + #???????????? | | ??????# ######## ## #???????????? | | ??????#????????# h ###########???????????? | | ???????????????# ##?????????????????????? | | ???????????????# #??????????????????????? | | ???????????????# #??????????????????????? | | ???????????????# #??????????????????????? | | ???????????????# #??????????????????????? | | ???????????????# #??????????????????????? | | ?????????????? ??????????????????????? | | ??????????????##############?????????????????????? | | ?????????????????????????????????????????????????? | +----------------------------------------------------+ Best States ------------- Heat Dissipation 122 Energy Generation 39 Energy Capacity 350 Matter Stores 300 Matter Capacity 300 Sight Range 23 Terrain Scan Density 10 Armor Coverage 1200 Resistance: KI 30 Resistance: TH 25 Core Shielding 20 Weapon Cycling 15 Evasion (%) 66 Targeting Accuracy 8 Melee Accuracy 6 Target Analysis 8 Core Analysis 8 Armor Integrity Analysis 30 Recoil Reduction 6 Particle Charging 15 Salvage Targeting 3 Offensive Hacking 30 Defensive Hacking 12 Relay Coupler Types 5 Relay Coupler Value 208 Item Schematics ----------------- Quantum Rifle | -6/Factory | Scanalyzed Hacking Suite | -6/Factory | Scanalyzed Lyr. Heavy Armor Plating | -6/Factory | Scanalyzed Robot Schematics ------------------ None Fabricated ------------ Nothing Alien Tech Used ----------------- None Achievements -------------- Fist Fight Packrat Challenges ------------ None Game ------ Seed ThrusterCoolingRegenerator Manual? 0 Play Time 05:03:25 Cumulative 179.9 hours Start 2024.04.22 @ 21:38:47 End 2024.04.30 @ 00:32:02 Sessions 13 Manual Loads 0 Difficulty Rogue Special Mode None Game No. 42 Rogue 22 Adventurer 20 Explorer 0 Win Type - Total 12 Types 7/2/3/0/0/0/0/0/0 Lore% 73 Gallery% 77 Achievement% 67 Wizard Run 0 Options --------- Layout 1 ASCII 0 Keyboard 1 Movement Numpad Keybinds 0 Fullscreen 1 Font 32/Smallcaps Map View 50x35 Zoom Use 0% Tactical HUD 1 Map Filters NONE Filters NONE Steam 1 RUN: cff250ea-fb68-4fa9-a1c8-bb3c11983049